Cogmind - Beta 17 @@@ ROGUE MODE // 2026.07.13 @ 20:20:58 // Winter2019/RPGLIKE Player: Gallgagger Result: Self-destructed Performance ------------- Evolutions (1) 500 Regions Visited (6) 1200 Robots Destroyed (1) 5 Value Destroyed (47) 47 Prototype IDs (23) 460 Alien Tech Used (0) 0 Bonus (500) 500 TOTAL SCORE: 2712 Bonus ------- Pacifist 200 Aligned with FarCom 300 Cogmind --------- Core Integrity 423/1250 Matter 300/300 Energy 93/100 System Corruption 2% Temperature Cool (0) Movement Flying (32) Location -8/Mines Parts ------- > --- POWER (1) -------- (None) > --- PROPULSION (3) --- VTOL Module VTOL Module > --- UTILITY (1) ------ Trap Reconfigurator > --- WEAPON (1) ------- Makeshift Sword > --- INVENTORY (2) ---- Protomatter-16 Peak State ------------ > --- POWER ------------ (None) > --- PROPULSION ------- Flight Unit VTOL Module VTOL Module > --- UTILITY ---------- Trap Reconfigurator > --- WEAPON ----------- Makeshift Sword > --- INVENTORY -------- Protomatter [Rating: 18] Favorites ----------- Power None Propulsion VTOL Module Hover Unit Hover Unit Flight Unit VTOL Module Utility Trap Reconfigurator Device Trap Reconfigurator Weapon Makeshift Sword Slashing Weapon Makeshift Sword Build | -11 -10 -10 -9 -9 -9 -8 ------- Run | Yrd Mat Min Mat Min Exi Min Slots Evolved 2 | . . . 2 . . . Power . | . . . . . . . Propulsion 2 | . . . 2 . . . Utility . | . . . . . . . Weapon . | . . . . . . . Parts Attached 8 | . 1 . 5 1 1 . Power . | . . . . . . . Engine . | . . . . . . . Core . | . . . . . . . Reactor . | . . . . . . . Propulsion 6 | . 1 . 5 . . . Treads . | . . . . . . . Leg . | . . . . . . . Wheel . | . . . . . . . Hover 1 | . 1 . . . . . Flight 5 | . . . 5 . . . Utility 1 | . . . . . 1 . Device 1 | . . . . . 1 . Storage . | . . . . . . . Processor . | . . . . . . . Hackware . | . . . . . . . Protection . | . . . . . . . Artifact . | . . . . . . . Weapon 1 | . . . . 1 . . Energy Gun . | . . . . . . . Energy Cannon . | . . . . . . . Ballistic Gun . | . . . . . . . Ballistic Cannon . | . . . . . . . Launcher . | . . . . . . . Special Weapon . | . . . . . . . Impact Weapon . | . . . . . . . Slashing Weapon 1 | . . . . 1 . . Piercing Weapon . | . . . . . . . Special Melee Weapon . | . . . . . . . Unidentified Prototypes . | . . . . . . . Parts Lost 4 | . . . 3 . . 1 Power . | . . . . . . . Propulsion 4 | . . . 3 . . 1 Utility . | . . . . . . . Weapon . | . . . . . . . Highest Loss Streak 2 | . . . 2 . . 1 To Critical Strikes . | . . . . . . . Average Backups . | . . . . . . . Power . | . . . . . . . Propulsion . | . . . . . . . Utility . | . . . . . . . Weapon . | . . . . . . . Tool/Special . | . . . . . . . Unused Backups . | . . . . . . . Power . | . . . . . . . Propulsion . | . . . . . . . Utility . | . . . . . . . Weapon . | . . . . . . . Tool/Special . | . . . . . . . Average Slot Usage (%) 51 | . 3 25 40 64 74 83 Hover 4 | . 3 25 10 . . . Flight 37 | . . . 30 50 50 50 Device 1 | . . . . . 8 16 Slashing Weapon 7 | . . . . 14 16 16 Peak Build Rating 18 | . 1 1 6 9 18 18 Average Rating 6 | . . 1 3 8 13 17 On Entrance 4 | . . 1 1 5 9 18 Avg Prop Armor Cover (%) 18 | . . 26 18 . . . Naked Turns 56 | . 56 . . . . . Heaviest Build 3 | . . . . 2 3 3 Greatest Support 12 | 3 6 6 12 12 12 12 Greatest Overweight (x) . | . . . . . . . Average Overweight (x) . | . . . . . . . Largest Inventory Capacity 2 | . . . 2 2 2 2 Average Capacity 1 | . . . 1 2 2 2 Most Carried 2 | . . . 2 1 1 1 Average Carried . | . . . 1 1 1 1 Final Capacity 2 | . . . 2 2 2 2 Final Carried 1 | . . . 1 1 1 1 Class Distribution -------------------- 76% | Sprinter 23% | Mutant Dominant Class ---------------- Mutant | -10/Materials Mutant | -10/Mines Sprinter | -9/Materials Sprinter | -9/Mines Sprinter | -9/Exiles Sprinter | -8/Mines Resources | -11 -10 -10 -9 -9 -9 -8 ----------- Run | Yrd Mat Min Mat Min Exi Min Matter Collected 294 | 48 . . . 187 . 59 Remotely . | . . . . . . . Salvage Created 68 | . . . . . . 68 Parts 1 | . . . . . . 1 Haulers Intercepted . | . . . . . . . Recyclers Shooed . | . . . . . . . Parts Field Recycled . | . . . . . . . Retrieved Matter . | . . . . . . . Parts Self-Destructed . | . . . . . . . Prevented . | . . . . . . . Parts Restored . | . . . . . . . Kills | -11 -10 -10 -9 -9 -9 -8 ------- Run | Yrd Mat Min Mat Min Exi Min Combat Hostiles Destroyed 1 | . . . . . . 1 Melee 1 | . . . . . . 1 Classes Destroyed 1 | . . . . . . 1 Grunt 1 | . . . . . . 1 Best Kill Streak 1 | . . . . . . 1 Combat Bots Only 1 | . . . . . . 1 Max Kills in Single Turn 1 | . . . . . . 1 Gunslinging . | . . . . . . . Exploded . | . . . . . . . Melee 1 | . . . . . . 1 Uniques/NPCs Destroyed . | . . . . . . . Combat | -11 -10 -10 -9 -9 -9 -8 -------- Run | Yrd Mat Min Mat Min Exi Min Hostile Shots Fired 195 | . 27 4 143 13 . 8 Missed 102 | . 13 3 75 7 . 4 Hits 93 | . 14 1 68 6 . 4 Projectile 93 | . 14 1 68 6 . 4 Critical Strikes 1 | . . . 1 . . . Damage Taken 943 | . 114 14 702 50 . 63 Core 827 | . 114 11 608 42 . 52 Absorbed by Shields . | . . . . . . . Redirected to Core 379 | . . 11 307 22 . 39 Core Remaining (%) 89 | 100 . 79 . . . . Volleys Fired . | . . . . . . . Largest . | . . . . . . . Hottest . | . . . . . . . Shots Fired . | . . . . . . . Gun . | . . . . . . . Cannon . | . . . . . . . Launcher . | . . . . . . . Special . | . . . . . . . Kinetic . | . . . . . . . Thermal . | . . . . . . . Explosive . | . . . . . . . Electromagnetic . | . . . . . . . Robot Hit Streak . | . . . . . . . Robot Miss Streak . | . . . . . . . Penetration Max . | . . . . . . . Secondary Targets . | . . . . . . . Shots Hit Robots 3 | . . . . . . 3 Core Hits 1 | . . . . . . 1 Critical Kills . | . . . . . . . Critical Parts Destroyed . | . . . . . . . Critical Strikes . | . . . . . . . Melee Attacks 4 | . . . . . 1 3 Impact . | . . . . . . . Slashing 4 | . . . . . 1 3 Piercing . | . . . . . . . Sneak Attacks . | . . . . . . . Combat Hostiles . | . . . . . . . Follow-up Attacks . | . . . . . . . Damage Inflicted 115 | . . . . . . 115 Guns . | . . . . . . . Cannons . | . . . . . . . Explosions . | . . . . . . . Melee 115 | . . . . . . 115 Ramming . | . . . . . . . Kinetic . | . . . . . . . Thermal . | . . . . . . . Explosive . | . . . . . . . Electromagnetic . | . . . . . . . Impact . | . . . . . . . Slashing 115 | . . . . . . 115 Piercing . | . . . . . . . Highest Corruption 2 | . . . 2 2 2 2 Average Corruption 2 | . . . 2 2 2 2 Corruption Purged . | . . . . . . . Corruption Blocked . | . . . . . . . Effects 10 | . . . 4 4 2 . Message Errors 4 | . . . 1 2 1 . Matter Fused 2 | . . . 1 1 . . Data Loss (minor) 3 | . . . 1 1 1 . Alerts 1 | . . . 1 . . . Overload Shots . | . . . . . . . Overflow Damage . | . . . . . . . Projectiles . | . . . . . . . Explosions . | . . . . . . . Melee . | . . . . . . . Knockbacks . | . . . . . . . Impact . | . . . . . . . Kinetic . | . . . . . . . Secondary . | . . . . . . . Self-Inflicted Damage . | . . . . . . . Shots . | . . . . . . . Rammed . | . . . . . . . Targets Rammed . | . . . . . . . Kicked . | . . . . . . . Crushed . | . . . . . . . Highest Temperature 10 | . . . 10 . . . Average Temperature 10 | . . . 10 . . . Received Heat Transfer 192 | . . 9 141 6 . 36 Siege Activations . | . . . . . . . Martial Activations . | . . . . . . . Shielding Activations . | . . . . . . . Robots Disrupted . | . . . . . . . Combat Hostiles . | . . . . . . . Robots Corrupted . | . . . . . . . Combat Hostiles . | . . . . . . . Parts Fried . | . . . . . . . Impact Corruptions . | . . . . . . . Robots Melted . | . . . . . . . Combat Hostiles . | . . . . . . . Parts Melted . | . . . . . . . Heat Transferred . | . . . . . . . Parts Sabotaged . | . . . . . . . Parts Stolen . | . . . . . . . Parts Stripped . | . . . . . . . Power Chain Reactions . | . . . . . . . Alert | -11 -10 -10 -9 -9 -9 -8 ------- Run | Yrd Mat Min Mat Min Exi Min Maximum Alert Level 2 | . . . 2 1 . . Low Security (%) 55 | 100 100 100 47 47 . 100 Level 1 31 | . . . 22 52 . . Level 2 12 | . . . 29 . . . Level 3 . | . . . . . . . Level 4 . | . . . . . . . Level 5 . | . . . . . . . High Security . | . . . . . . . Max Security . | . . . . . . . Peak Influence 550 | . 65 21 550 260 . 20 Initial 210 | . . 21 7 210 . . Average 185 | . 25 21 236 196 . 4 Influence Increases 875 | . 75 . 705 75 . 20 Destroy 0b10 Robot/C 20 | . . . . . . 20 Partial Spotted 45 | . . . 45 . . . Lose Combat Pursuer 810 | . 75 . 660 75 . . Influence Decreases 875 | . 20 34 186 480 135 20 Entered New Map 513 | . . 34 14 330 135 . Time Decay 322 | . 20 . 142 150 . 10 Lost Part 40 | . . . 30 . . 10 Squads Dispatched 3 | . 1 . 2 . . . Investigation . | . . . . . . . Extermination . | . . . . . . . Reinforcement 3 | . 1 . 2 . . . Assault . | . . . . . . . Garrison . | . . . . . . . Intercept . | . . . . . . . Searches Triggered . | . . . . . . . Construction Impeded . | . . . . . . . Haulers Reinforced . | . . . . . . . Active Scanning Responses . | . . . . . . . Cargo Convoy Interrupts . | . . . . . . . Stealth | -11 -10 -10 -9 -9 -9 -8 --------- Run | Yrd Mat Min Mat Min Exi Min Distress Signals 6 | . 1 . 5 . . . Communications Jammed . | . . . . . . . Distress Signals . | . . . . . . . Times Spotted 74 | . 12 4 47 7 . 4 Peak Tracking Total 12 | . 9 4 12 4 9 4 Tactical Retreats 15 | . 2 . 11 2 . . Traps | -11 -10 -10 -9 -9 -9 -8 ------- Run | Yrd Mat Min Mat Min Exi Min Traps Triggered 1 | . . . 1 . . . Indirectly . | . . . . . . . Trap Hack Attempts . | . . . . . . . Triggered . | . . . . . . . Disarmed . | . . . . . . . Reprogrammed . | . . . . . . . Reused . | . . . . . . . Traps Extracted . | . . . . . . . Installed . | . . . . . . . Triggered . | . . . . . . . Machines | -11 -10 -10 -9 -9 -9 -8 ---------- Run | Yrd Mat Min Mat Min Exi Min Machines Disabled 1 | . . . . . 1 . Max in Single Turn 1 | . . . . . 1 . Machines Repaired . | . . . . . . . Machines Dismantled . | . . . . . . . Machines Sabotaged . | . . . . . . . Overloaded Fab Kills . | . . . . . . . Hacking | -11 -10 -10 -9 -9 -9 -8 --------- Run | Yrd Mat Min Mat Min Exi Min Machines Accessed 1 | . . . . . 1 . Terminals . | . . . . . . . Fabricators . | . . . . . . . Repair Stations . | . . . . . . . Recycling Units . | . . . . . . . Scanalyzers . | . . . . . . . Garrison Access . | . . . . . . . Total Hacks 1 | . . . . . 1 . Successful 1 | . . . . . 1 . Failed . | . . . . . . . Catastrophic . | . . . . . . . Database Lockouts . | . . . . . . . Manual 1 | . . . . . 1 . Terminals . | . . . . . . . Fabricators . | . . . . . . . Repair Stations . | . . . . . . . Recycling Units . | . . . . . . . Scanalyzers . | . . . . . . . Garrison Access . | . . . . . . . Terminal Hacks 1 | . . . . . 1 . Proto ID Catalog 1 | . . . . . 1 . Fabricator Hacks . | . . . . . . . Repair Station Hacks . | . . . . . . . Recycling Unit Hacks . | . . . . . . . Scanalyzer . | . . . . . . . Garrison Access Hacks . | . . . . . . . Unauthorized Hacks . | . . . . . . . Terminals . | . . . . . . . Fabricators . | . . . . . . . Repair Stations . | . . . . . . . Recycling Units . | . . . . . . . Scanalyzers . | . . . . . . . Garrison Access . | . . . . . . . Data Cores Recovered . | . . . . . . . Used . | . . . . . . . Hacking Detections . | . . . . . . . Full Trace Events . | . . . . . . . Feedback Events . | . . . . . . . Feedback Blocked . | . . . . . . . Robot Schematics Acquired . | . . . . . . . Robots Built . | . . . . . . . Authchips . | . . . . . . . Time . | . . . . . . . Total Robot Build Rating . | . . . . . . . Part Schematics Acquired . | . . . . . . . Parts Built . | . . . . . . . Authchips . | . . . . . . . Time . | . . . . . . . Total Part Build Rating . | . . . . . . . Part Studies Acquired . | . . . . . . . Parts Repaired . | . . . . . . . Time . | . . . . . . . Parts Recycled . | . . . . . . . Recycled Matter . | . . . . . . . Retrieved Matter . | . . . . . . . Retrieved Components . | . . . . . . . Parts Scanalyzed . | . . . . . . . Part Schematics Acquired . | . . . . . . . Parts Damaged . | . . . . . . . Bothacking | -11 -10 -10 -9 -9 -9 -8 ------------ Run | Yrd Mat Min Mat Min Exi Min Used RIF Installer . | . . . . . . . Robots Hacked . | . . . . . . . Non-combat . | . . . . . . . Combat . | . . . . . . . Robot Hacks Applied . | . . . . . . . Relay Couplers Released . | . . . . . . . Fabnet Peak Effective % . | . . . . . . . Robots Rewired . | . . . . . . . Allies Hacked . | . . . . . . . Hacks Repelled . | . . . . . . . Allies | -11 -10 -10 -9 -9 -9 -8 -------- Run | Yrd Mat Min Mat Min Exi Min Total Allies . | . . . . . . . Largest Group . | . . . . . . . Highest-Rated Group . | . . . . . . . Highest-Rated Ally . | . . . . . . . Total Orders . | . . . . . . . Ally Attacks . | . . . . . . . Total Damage . | . . . . . . . Kills . | . . . . . . . Allies Corrupted . | . . . . . . . Allies Melted . | . . . . . . . Intel | -11 -10 -10 -9 -9 -9 -8 ------- Run | Yrd Mat Min Mat Min Exi Min Active Infowar (turns) . | . . . . . . . Robot Analysis Total . | . . . . . . . Derelict Logs Recovered 1 | . . . . 1 . . Drone Launches . | . . . . . . . Drone Recoveries . | . . . . . . . Exploration | -11 -10 -10 -9 -9 -9 -8 ------------- Run | Yrd Mat Min Mat Min Exi Min Turns Passed 784 | 10 62 16 301 304 68 23 Spaces Moved 1794 | 21 119 30 855 520 213 36 Core 260 | 21 110 21 108 . . . Treads . | . . . . . . . Legs . | . . . . . . . Wheels . | . . . . . . . Hover 18 | . 9 9 . . . . Flight 1516 | . . . 747 520 213 36 Fastest Speed 29 | 50 50 50 29 30 30 30 Average Speed 33 | 50 50 53 34 30 30 30 Slowest Speed 60 | 50 60 60 50 30 30 32 Overloaded Moves . | . . . . . . . Propulsion Burnouts . | . . . . . . . Robots Hopped 27 | . . . 19 6 . 2 Potential Cave-ins . | . . . . . . . Cave-ins Triggered . | . . . . . . . Exploration Rate (%) 41 | 4 30 18 71 98 62 7 Regions Visited 6 Branch Regions 4 Pre-discovered Areas 1 | . . . . 1 . . Known Exits Taken . | . . . . . . . Unknown Exits Taken 6 | 1 1 1 1 1 1 . Scrap Searched 2 | . . . . 2 . . Spaces Dug . | . . . . . . . Terrain Destroyed . | . . . . . . . Melee . | . . . . . . . Projectile . | . . . . . . . AOE . | . . . . . . . Terrain Rammed . | . . . . . . . Walls Destroyed . | . . . . . . . Machines Disabled . | . . . . . . . Actions | -11 -10 -10 -9 -9 -9 -8 --------- Run | Yrd Mat Min Mat Min Exi Min Total 1926 | 20 119 29 842 660 214 42 Wait 151 | . . . . 146 . 5 Move 1736 | 20 118 29 817 507 212 33 Hop 25 | . . . 18 6 . 1 Pick Up 1 | . . . 1 . . . Fast Attach 7 | . 1 . 4 1 1 . Attach 1 | . . . 1 . . . Detach . | . . . . . . . Swap 1 | . . . 1 . . . Drop . | . . . . . . . Fire . | . . . . . . . Melee 4 | . . . . . 1 3 Ram . | . . . . . . . Kick . | . . . . . . . Crush . | . . . . . . . Escape Stasis . | . . . . . . . Rewire . | . . . . . . . Trap . | . . . . . . . Miscellaneous . | . . . . . . . Route ------- -11/Scrapyard -10/Materials -10/Mines -9/Materials (discovered 4 exits: [*Mat x3] / [*Min]) -9/Mines (discovered 3 exits: [*Mat x2] / *Exi) -9/Exiles -8/Mines (discovered 1 exit: [*Mat]) History --------- Turn | Location | Event 3 | -11/Scrapyard | Discovered new exit (range 16) 11 | -11/Scrapyard | Entered Materials 62 | -10/Materials | Discovered new exit (range 12) 73 | -10/Materials | Entered Mines 80 | -10/Mines | Discovered new exit (range 16) 89 | -10/Mines | Entered Materials 91 | -9/Materials | Reached level 2 142 | -9/Materials | Upgraded with Propulsion slot (x1) 145 | -9/Materials | Upgraded with Propulsion slot (x1) 155 | -9/Materials | Core integrity fell below 50% 169 | -9/Materials | Discovered new exit (range 8) 204 | -9/Materials | Discovered new exit (range 8) 367 | -9/Materials | Discovered new exit (range 3) 387 | -9/Materials | Discovered new exit (range 12) 390 | -9/Materials | Entered Mines 396 | -9/Mines | Assembled infested the area 402 | -9/Mines | A weapon hastily lodged in a ceiling crevice suddenly fell to the ground 412 | -9/Mines | Discovered new exit (range 9) 414 | -9/Mines | Learned location of Storage (-8) 665 | -9/Mines | Discovered new exit (range 7) 672 | -9/Mines | Build established: Sprinter 673 | -9/Mines | Learned Materials emergency access door positions 693 | -9/Mines | Deemed a non-threat by the Exiles lab entrance 693 | -9/Mines | Discovered new exit (range 5) 694 | -9/Mines | Entered Exiles 703 | -9/Exiles | Met 8R-AWN 707 | -9/Exiles | Met EX-HEX 716 | -9/Exiles | Met EX-BIN 720 | -9/Exiles | Aligned with FarCom system 720 | -9/Exiles | Given EX-Vault access code 727 | -9/Exiles | Opened EX-Vault 729 | -9/Exiles | Found Trap Reconfigurator 736 | -9/Exiles | Warned to stay clear of 0b10 Research branches 746 | -9/Exiles | Met EX-DEC 751 | -9/Exiles | Attacked by the Exiles 759 | -9/Exiles | Discovered new exit (range 10) 762 | -9/Exiles | Left Exiles lab with Trap Reconfigurator 762 | -9/Exiles | Entered Mines 764 | -8/Mines | Reached level 3 766 | -8/Mines | Discovered new exit (range 5) 785 | -8/Mines | 99-TNT came to Exiles' defense 785 | -8/Mines | Self-destructed Last Messages --------------- network. EX-DEC: Ah I see we have a visitor. One wrong move in here and I'll invert your atomic chain! 00748_ EX-DEC: "Oops, I hope HEX didn't hear that..." 00750_ Machine disabled. 00751_ EXILES: Hostile robot within lab perimeter. Defensive protocols time, folks! 00759_ EXIT=FOUND A strange signal echoes through the mines. LOCATION=UNKNOWN GOAL=ESCAPE 00764_ Reached level 3. 00766_ EXIT=FOUND 00768_ K-01 Serf collects debris. 00776_ G-47 Trooper destroyed. 00777_ K-01 Serf collects debris. 00778_ Acquired 59 matter. 00781_ Flight Unit destroyed. 00781_ K-01 Serf collects debris. 00785_ 99-TNT: "I came as fast as I could... Wait, it was you!" Map ----- +----------------------------------------------------+ | | | | | | | | | | | | | | | | | | | | | | | | | | | ???????????????????????????????????????????????? | | ???????????????????????????????????????????????? | | ???????????????????????????????????????????????? | | ???????????????????????????????????????????????? | | ???????????????????????????????????????????????? | | ????????????????????????##?????????????????????? | | ???????????????????????? #????????????????????? | | ????????????????????????# #????????????????????? | | ????????????????????????# #????????????????????? | | ????????????????????##### #???? ##?????????????? | | ????????????????????# ## #?? #####?????????? | | ????????????????????# # # ??????? | | ???????????????????## @ t ??????? | | ??????????????????## #### #?????????????? | | ????????????####### ##????? #??????????? | | ????????????#= #????????d #??????????? | | ????????????#%### < ##?????????? #??????????? | | ????????????#%#?## ##?????????????##??????????? | | ????????????# #??####??????????????????????????? | | ????????????# #????????????????????????????????? | | ????????????# #????????????????????????????????? | | ????????????# ##???????????????????????????????? | | ???????????## ##??????????????????????????????? | | ???????????# ##?????????????????????????????? | | ???????????# #?????????????????????????????? | | ???????????# #?????????????????????????????? | | ???????????# #?????????????????????????????? | | ???????????## ##?????????????????????????????? | | ????????????#####??????????????????????????????? | | ???????????????????????????????????????????????? | | ???????????????????????????????????????????????? | | ???????????????????????????????????????????????? | | ???????????????????????????????????????????????? | | ???????????????????????????????????????????????? | | ???????????????????????????????????????????????? | | ???????????????????????????????????????????????? | | ???????????????????????????????????????????????? | +----------------------------------------------------+ Best States ------------- Heat Dissipation 25 Energy Generation 5 Energy Capacity 100 Matter Stores 300 Matter Capacity 300 Sight Range 16 Terrain Scan Density 10 Evasion (%) 64 Item Schematics ----------------- None Robot Schematics ------------------ None Fabricated ------------ Nothing Repaired ---------- Nothing Studied --------- None Alien Tech Used ----------------- None Achievements -------------- None Challenges ------------ None RPGLIKE | -11 -10 -10 -9 -9 -9 -8 --------- Run | Yrd Mat Min Mat Min Exi Min Levels Raised 2 | . . . 1 . . 1 XP Earned 6550 | 3000 . 600 1500 500 350 600 XP Spent 3155 | . . . 3155 . . . Upgrades 17 | . . . 17 . . . Propulsion Slot 2 | . . . 2 . . . Core Integrity 13 | . . . 13 . . . Inventory Capacity 2 | . . . 2 . . . Protomatter Created . | . . . . . . . Protomatter Decayed 119 | . . . 96 23 . . Game ------ Seed BiometalReflexChronowheel Manual? 0 Play Time 00:09:11 Cumulative 660.4 hours Start 2026.07.13 @ 19:56:46 End 2026.07.13 @ 20:20:58 Sessions 1 Manual Loads 0 Difficulty Rogue Special Mode Winter2019/RPGLIKE Game No. 270 Rogue 116 Adventurer 154 Explorer 0 Win Type - Total 22 Types 4/5/4/3/2/1/0/1/1/1 Lore% 95 Gallery% 88 Achievement% 68 Wizard Run 0 Options --------- Layout 0 ASCII 0 Keyboard 0 Movement Numpad Keybinds 0 Fullscreen 2 Font 18/SmallcapsGlow Map View 76x50 Zoom Use 0% Tactical HUD 1 Map Filters NONE Filters NONE Steam 1 RUN: 6981af6e-31bc-4b8a-8b05-54b26533aa0f